fUSD/lending_fUSD_20251023
["ID","MTS","AMOUNT","RATE_DAILY","PERIOD"]
[392172489,1761232245714,-773.45955,0.0004496,25]
[392172490,1761232245725,-151.0,0.0004496,120]
[392172491,1761232245734,-181.007144,0.0004496,120]
[392172492,1761232245744,-9822.68024768,0.0004496,3]
[392172493,1761232245755,-400.0,0.0004497,3]
[392172494,1761232245764,-8476.0607639,0.0004497,2]
[392172495,1761232245774,-500.0,0.0004497,120]
[392172496,1761232245785,-351.52,0.0004497,120]
[392172497,1761232245795,-427.06,0.0004497,30]
[392172498,1761232245805,-425.3480466,0.0004497,2]
[392172499,1761232245815,-165.52455028,0.0004497,2]
[392172500,1761232245825,-166.24922999,0.00044974,7]
[392172501,1761232245835,-9822.68024768,0.00044975,3]
[392172502,1761232245844,-500.0,0.0004498,2]
[392172503,1761232245854,-500.0,0.0004498,120]
[392172504,1761232245864,-535.74,0.0004498,120]
[392172505,1761232245874,-58936.0814861,0.0004498,3]
[392172506,1761232245884,-999.0,0.00044983,120]
[392172507,1761232245894,-500.0,0.00044983,120]
[392172508,1761232245904,-38167.43586709,0.00044984,3]
[392172509,1761232245917,-8408.25874516,0.00044984,3]
[392172510,1761232245930,-318.72897259,0.00044984,3]
[392172511,1761232245942,-2218.97765356,0.00044984,3]
[392172512,1761232245952,-169.180428,0.00044984,120]
[392172513,1761232245962,-169.180428,0.00044984,120]
[392172514,1761232245971,-169.180428,0.00044984,120]
[392172515,1761232245981,-169.180428,0.00044984,120]
[392172516,1761232245991,-151.0,0.00044984,30]
[392172517,1761232246000,-151.0,0.00044984,30]
[392172518,1761232246010,-211.417774,0.00044984,30]
[392172519,1761232246022,-500.0,0.00044985,120]
[392172520,1761232246032,-500.0,0.00044985,120]
[392172521,1761232246041,-500.0,0.00044985,120]
[392172522,1761232246051,-500.0,0.00044985,120]
[392172523,1761232246061,-500.0,0.00044985,120]
[392172524,1761232246071,-500.0,0.00044985,120]
[392172525,1761232246081,-500.0,0.00044985,120]
[392172526,1761232246090,-500.0,0.00044985,120]
[392172527,1761232246099,-500.0,0.00044985,120]
[392172528,1761232246109,-500.0,0.00044985,120]
[392172529,1761232246119,-500.0,0.00044985,120]
[392172530,1761232246128,-500.0,0.00044985,120]
[392172532,1761232246138,-17131.23727235,0.00044986,120]
[392172538,1761232246187,-98.1443313,0.00044986,120]
[392172540,1761232246198,-842.26145612,0.00044986,120]
[392172542,1761232246209,-3105.12741505,0.00044986,120]
[392172544,1761232246219,-150.0,0.00044986,30]
[392172546,1761232246229,-153.77657523,0.00044986,30]
[392172548,1761232246239,-166.80831812,0.00044986,30]
[392172550,1761232246248,-150.0,0.00044986,30]
[392172552,1761232246258,-150.0,0.00044986,30]
[392172553,1761232246268,-18000.0,0.00044988,120]
[392172555,1761232246280,-151.0,0.00044988,120]
[392172556,1761232246290,-500.0,0.00044989,120]
[392172558,1761232246300,-500.0,0.00044989,120]
[392172560,1761232246310,-500.0,0.00044989,120]
[392172562,1761232246319,-500.0,0.00044989,120]
[392172564,1761232246330,-500.0,0.00044989,120]
[392172566,1761232246340,-500.0,0.00044989,120]
[392172568,1761232246349,-361.10614744,0.00044989,120]
[392172570,1761232246359,-507.63,0.00044989,120]
[392172572,1761232246369,-500.0,0.00044989,120]
[392172574,1761232246378,-500.0,0.00044989,120]
[392172575,1761232246387,-507.83,0.00044989,120]
[392172577,1761232246396,-500.0,0.00044989,120]
[392172579,1761232246407,-64949.14829561,0.0004499,120]
[392172581,1761232246419,-4539.22001657,0.0004499,120]
[392172585,1761232246535,-414.24,0.00044219,30]
[392172586,1761232246546,-248.29723803,0.0004499,120]
[392172587,1761232246558,-3910.2087075,0.0004499,120]
[392172588,1761232246570,-435.4082874,0.0004499,120]
[392172589,1761232246582,-649.45170805,0.0004499,120]
[392172590,1761232246615,-302.0,0.00044783,2]
[392172591,1761232246654,-350.5250053,0.00044783,2]
[392172592,1761232246666,-406.22948264,0.00044783,2]
[392172593,1761232246776,-125.24551206,0.00044783,2]
[392172594,1761232246786,-516.9985199,0.0004499,120]
[392172633,1761232409229,-250.0,0.00024932,2]
[392172657,1761232459372,744.0,0.00027397,120]
[392172662,1761232476326,322.52,0.00013699,2]
[392172665,1761232483484,-307.55077065,0.00020187,2]
[392172738,1761232813495,-14.96922935,0.00020187,2]
[392172739,1761232813517,-250.0,0.00022206,2]
[392172740,1761232813539,-193.87077065,0.00022206,2]
[392172782,1761233108375,3570.895872,0.00015,2]
[392172783,1761233108405,114817.0,0.00015,2]
[392172784,1761233108431,5336.01944908,0.00015,2]
[392172785,1761233108456,5336.01944908,0.00015,2]
[392172786,1761233108482,5336.01944908,0.00015,2]
[392172787,1761233108511,5336.01944908,0.00015,2]
[392172788,1761233108537,5336.01944908,0.00015,2]
[392172789,1761233108571,80000.0,0.00015,2]
[392172790,1761233108603,88966.41,0.00015,2]
[392172791,1761233108629,5336.01944908,0.00015,2]
[392172792,1761233108654,5336.01944908,0.00015,2]
[392172793,1761233108681,5336.01944908,0.00015,2]
[392172794,1761233108708,5336.01944908,0.00015,2]
[392172795,1761233108734,5336.01944908,0.00015,2]
[392172796,1761233108766,367495.37435205,0.00015,2]
[392172797,1761233113411,-283.16109466,0.00019486,2]
[392172798,1761233114976,-266.15171073,0.00019486,2]
[392172799,1761233124468,-225.11448542,0.00019486,2]
[392172801,1761233127041,-228.4215338,0.00019486,2]
[392172802,1761233129924,-221.75770419,0.00019486,2]
[392172803,1761233132547,-161.99298482,0.00019486,2]
[392172804,1761233136986,-292.48367328,0.00019486,2]
[392172805,1761233139660,-183.00646124,0.00019486,2]
[392172806,1761233142822,-195.0,0.00019486,2]
[392172811,1761233158433,-285.78371034,0.00019486,2]
[392172814,1761233159952,-158.19244243,0.00019486,2]
[392172819,1761233218954,2704.60862925,0.000162,5]
[392172823,1761233229994,6851.0256285,0.00015,2]
[392172827,1761233234083,-14.82419909,0.00019486,2]
[392172828,1761233234113,-157.41175727,0.00019743,2]
[392172829,1761233234138,-286.64139461,0.0002,2]
[392172830,1761233277235,80000.0,0.00015,2]
[392172831,1761233277266,2591497.8488536,0.00015,2]
[392172856,1761233345097,-1725.57731,0.00019899,2]
[392172857,1761233345122,-800.0,0.00019999,2]
[392172858,1761233345150,-500.0,0.00019999,2]
[392172859,1761233345176,-500.0,0.00019999,2]
[392172860,1761233345203,-500.0,0.00019999,2]
[392172861,1761233345231,-500.0,0.00019999,2]
[392172862,1761233345259,-349.474242,0.00019999,2]
[392172864,1761233349134,-300.0,0.00019998,2]
[392172865,1761233349164,-150.525758,0.00019999,2]
[392172866,1761233349193,-500.0,0.00019999,2]
[392172867,1761233349219,-500.0,0.00019999,2]
[392172868,1761233349248,-97.2127462,0.00019999,2]
[392172869,1761233353105,-402.7872538,0.00019999,2]
[392172870,1761233353133,-500.0,0.00019999,2]
[392172871,1761233353160,-500.0,0.00019999,2]
[392172872,1761233353191,-189.58395189,0.00019999,2]
[392172873,1761233353220,-500.0,0.00019999,2]
[392172874,1761233353252,-500.0,0.00019999,2]
[392172875,1761233353281,-500.0,0.00019999,2]
[392172876,1761233353308,-500.0,0.00019999,2]
[392172877,1761233353336,-500.0,0.00019999,2]
[392172878,1761233353361,-250.0,0.0002,2]
[392172879,1761233353384,-195.0,0.0002,2]
[392172880,1761233353412,-8957.88293266,0.0002,2]
[392172881,1761233353435,-5839.44505006,0.0002,2]
[392172882,1761233353459,-35203.57868134,0.0002,2]
[392172883,1761233353482,-521.75689722,0.0002,7]
[392172884,1761233353504,-195.0,0.00020471,2]
[392172885,1761233353529,-2515.89,0.00020512,2]
[392172886,1761233353553,-828.93433233,0.00021,2]
[392172887,1761233353575,-1179.64258117,0.00021,2]
[392172888,1761233353597,-194.71665679,0.00021,2]
[392172889,1761233353622,-187.4775085,0.00021435,2]
[392172890,1761233353854,-620.49282061,0.00021435,2]
[392172891,1761233353877,-250.0,0.00021435,2]
[392172892,1761233353899,-195.0,0.00021435,2]
[392172893,1761233353919,-195.0,0.00021435,2]
[392172894,1761233353938,-219.53564203,0.000215,2]
[392172895,1761233353961,-193.8443116,0.00021538,2]
[392172896,1761233354106,-2322.0456884,0.00021538,2]
[392172897,1761233354126,-300.0,0.00021888,2]
[392172898,1761233354148,-2500.0,0.00021999,2]
[392172899,1761233354179,-1254.52825086,0.00021999,2]
[392172900,1761233357231,-2505.17426324,0.00021999,2]
[392172901,1761233357252,-250.0,0.00021999,2]
[392172902,1761233357273,-195.0,0.00021999,2]
[392172903,1761233357296,-160.97,0.00022,2]
[392172904,1761233357318,-1000.0,0.00022205,2]
[392172905,1761233357340,-2515.89,0.00022563,2]
[392172906,1761233357362,-1597.67948209,0.00023589,2]
[392172907,1761233370088,-918.21051791,0.00023589,2]
[392172908,1761233370112,-2515.89,0.00024614,2]
[392172909,1761233370133,-151.87794743,0.0002465,2]
[392172910,1761233370155,-500.0,0.00024932,2]
[392172911,1761233370176,-204.55756132,0.00025,2]
[392172912,1761233370197,-318.6022555,0.00025,2]
[392172913,1761233370219,-500.0,0.00025638,2]
[392172914,1761233370239,-177.15000735,0.00025638,2]
[392172915,1761233370260,-362.02476288,0.00025638,2]
[392172916,1761233370283,-2515.89,0.0002564,2]
[392172917,1761233370304,-195.57,0.00025718,2]
[392172918,1761233370330,-2515.89,0.00026665,2]
[392172919,1761233370350,-322.52,0.00026676,2]
[392172920,1761233370370,-164.37041908,0.000269,2]
[392172921,1761233370390,-1205.32,0.00027,2]
[392172922,1761233370410,-161.68303364,0.00027,2]
[392172923,1761233370431,-1586.64597787,0.0002739,2]
[392172924,1761233370451,-500.0,0.0002764,5]
[392172925,1761233370472,-2515.89,0.00027691,2]
[392172926,1761233370506,-250.0,0.00027999,2]
[392172927,1761233370528,-7312.77863266,0.00028,2]
[392172947,1761233431540,-159.59604499,0.000279,2]
[392172948,1761233431551,-150.0,0.000279,2]
[392172949,1761233431560,-300.0,0.00027999,2]
[392172950,1761233431570,-300.0,0.00027999,2]
[392172951,1761233431580,-1200.0,0.00027999,2]
[392172952,1761233431591,-41345.35905788,0.00028,2]
[392172953,1761233431603,-14370.05029096,0.00028,2]
[392172954,1761233431613,-150.0,0.00028417,2]
[392172955,1761233431623,-2515.89,0.00028717,2]
[392172956,1761233431632,-261.19,0.00029388,14]
[392172957,1761233431642,-2515.89,0.00029742,2]
[392172958,1761233431654,-420.0,0.00030239,2]
[392172959,1761233431666,-1680.0,0.00030371,2]
[392172960,1761233431675,-173.44630686,0.0003069,2]
[392172961,1761233431685,-300.0,0.0003069,120]
[392172962,1761233431695,-2515.89,0.00030768,2]
[392172963,1761233431705,-158.0,0.00031,120]
[392172964,1761233431716,-176.0,0.00031,120]
[392172965,1761233431725,-170.14,0.00031482,2]
[392172966,1761233431735,-2101.28,0.00031793,2]
[392172967,1761233431745,-2515.89,0.00031793,2]
[392172968,1761233431754,-2515.89,0.00032819,2]
[392172969,1761233431764,-960.0,0.00032943,3]
[392172970,1761233431773,-322.52,0.00033165,2]
[392172971,1761233431783,-2515.89,0.00033845,2]
[392172972,1761233431793,-500.0,0.0003463,2]
[392172973,1761233431803,-500.0,0.00034712,2]
[392172974,1761233431812,-2515.89,0.0003487,2]
[392172975,1761233431822,-500.0,0.00035397,2]
[392172976,1761233431831,-2515.89,0.00035896,2]
[392172977,1761233431842,-227.86790053,0.00036363,120]
[392172978,1761233431852,-4027.01219626,0.0003688,10]
[392172979,1761233431861,-13893.77582779,0.0003691,2]
[392172980,1761233431871,-2515.89,0.00036921,2]
[392172981,1761233431881,-500.0,0.00036922,5]
[392172982,1761233431891,-163.94233097,0.00036922,2]
[392172984,1761233431900,-500.0,0.00036922,5]
[392172986,1761233431910,-214.08974829,0.00036922,5]
[392172988,1761233431920,-500.0,0.00036922,5]
[392172990,1761233431929,-162.81816908,0.00037,2]
[392172992,1761233431939,-184.64,0.0003738,2]
[392172994,1761233431948,-30618.98561642,0.0003739,14]
[392172997,1761233431961,-122767.75360538,0.0003739,14]
[392172998,1761233431972,-19516.19754949,0.0003739,14]
[392173000,1761233431985,-23341.80864802,0.0003739,14]
[392173002,1761233431998,-1008.12308747,0.0003747,5]
[392173004,1761233432007,-5847.755486,0.0003749,2]
[392173005,1761233432016,-4261.32921563,0.0003759,2]
[392173006,1761233432027,-168.0,0.00037621,2]
[392173007,1761233432036,-1508.23883416,0.00037654,30]
[392173008,1761233432048,-20259.90663066,0.00037654,30]
[392173009,1761233432058,-162.5,0.000378,15]
[392173010,1761233432068,-151.0,0.00037845,2]
[392173011,1761233432077,-151.0,0.00037845,2]
[392173012,1761233432087,-151.0,0.00037845,2]
[392173013,1761233432101,-151.0,0.00037845,2]
[392173014,1761233432111,-151.0,0.00037845,2]
[392173015,1761233432121,-151.0,0.00037845,2]
[392173016,1761233432131,-151.0,0.00037845,2]
[392173017,1761233432140,-151.0,0.00037845,2]
[392173018,1761233432150,-151.0,0.00037845,2]
[392173019,1761233432161,-151.0,0.00037845,2]
[392173020,1761233432170,-151.0,0.00037845,2]
[392173021,1761233432179,-151.0,0.00037845,2]
[392173022,1761233432189,-151.0,0.00037845,2]
[392173023,1761233432198,-151.0,0.00037845,2]
[392173024,1761233432208,-151.0,0.00037845,2]
[392173025,1761233432217,-151.0,0.00037845,2]
[392173026,1761233432227,-151.0,0.00037845,2]
[392173027,1761233432236,-151.0,0.00037845,2]
[392173028,1761233432245,-151.0,0.00037845,2]
[392173029,1761233432254,-151.0,0.00037845,2]
[392173030,1761233432264,-151.0,0.00037845,2]
[392173031,1761233432274,-151.0,0.00037845,2]
[392173032,1761233432284,-151.0,0.00037845,2]
[392173033,1761233432293,-151.0,0.00037845,2]
[392173034,1761233432303,-151.0,0.00037845,2]
[392173035,1761233432312,-151.0,0.00037845,2]
[392173036,1761233432322,-151.0,0.00037845,2]
[392173037,1761233432332,-151.0,0.00037845,2]
[392173038,1761233432343,-151.0,0.00037845,2]
[392173039,1761233432352,-151.0,0.00037845,2]
[392173040,1761233432362,-151.0,0.00037845,2]
[392173041,1761233432372,-151.0,0.00037845,2]
[392173042,1761233432386,-298.44984122,0.00037845,2]
[392173043,1761233432396,-151.0,0.00037845,2]
[392173044,1761233432406,-151.0,0.00037845,2]
[392173045,1761233432415,-151.0,0.00037845,2]
[392173046,1761233432424,-151.0,0.00037845,2]
[392173047,1761233432434,-151.0,0.00037845,2]
[392173048,1761233432444,-151.0,0.00037845,2]
[392173049,1761233432453,-151.0,0.00037845,2]
[392173050,1761233432462,-151.0,0.00037845,2]
[392173051,1761233432471,-184.64,0.00037858,2]
[392173052,1761233432481,-915.212,0.00037867,49]
[392173053,1761233432491,-35290.32,0.00037868,2]
[392173054,1761233432501,-1960.05,0.00037868,2]
[392173055,1761233432510,-203.13,0.00037868,5]
[392173056,1761233432520,-249.66,0.00037868,120]
[392173057,1761233432530,-666.0,0.00037868,3]
[392173058,1761233432539,-198.76707875,0.0003788,2]
[392173059,1761233432548,-2515.89,0.00037947,2]
[392173060,1761233432558,-10523.42329298,0.0003807,30]
[392173061,1761233432567,-168.0,0.00038277,2]
[392173062,1761233432576,-31698.74347691,0.000383,30]
[392173063,1761233435365,250.0,0.00017,2]
[392173064,1761233437477,-300.0,0.00019,2]
[392173065,1761233437486,-500.0,0.00027999,2]
[392173066,1761233437495,-354.39821688,0.00027999,2]
[392173067,1761233437505,-603.41733402,0.00034869,7]
[392173068,1761233437514,-500.4575524,0.00036922,5]
[392173069,1761233437523,-639.8168967,0.000383,30]
[392173070,1761233437534,-7802.01524583,0.000383,30]
[392173071,1761233437543,-5847.75548597,0.00038314,2]
[392173072,1761233437553,-562.66785436,0.000389,120]
[392173073,1761233437562,-2515.89,0.00038973,2]
[392173074,1761233437572,-184.64,0.0003898,2]
[392173075,1761233437582,-7770.89284351,0.0003899,14]
[392173076,1761233437591,-2128.9164245,0.0003899,3]
[392173077,1761233437603,-7575.3780709,0.0003899,3]
[392173078,1761233437614,-1554.42497165,0.0003899,3]
[392173089,1761233439516,-7730.17924815,0.0003899,3]
[392173090,1761233439526,-2269.82075185,0.0003899,120]
[392173091,1761233439537,-296.68789698,0.0003899,120]
[392173092,1761233439547,-104.77210302,0.0003899,2]
[392173093,1761233439614,-79.86789698,0.0003899,2]
[392173094,1761233439623,-3923.68685772,0.00039,2]
[392173095,1761233439633,-70895.45933479,0.00039,10]
[392173096,1761233439647,-433.42866838,0.00039,120]
[392173097,1761233439659,-2311.04217695,0.00039,120]
[392173098,1761233439669,-151.0,0.00039,30]
[392173099,1761233439679,-166.66,0.00039004,2]
[392173100,1761233439688,-168.0,0.00039049,2]
[392173101,1761233439698,-5847.75548597,0.00039139,2]
[392173102,1761233439708,-430.40188871,0.000392,2]
[392173103,1761233439718,-150.83,0.00039238,2]
[392173104,1761233439729,-1532.8,0.0003932,2]
[392173105,1761233439738,-168.0,0.00039328,2]
[392173106,1761233439747,-187.05,0.00039447,2]
[392173107,1761233439757,-257.148635,0.00039452,120]
[392173108,1761233439767,-290.7708,0.00039452,120]
[392173109,1761233439777,-349.260784,0.00039452,120]
[392173110,1761233439787,-322.52,0.00039654,2]
[392173111,1761233439797,-200.0,0.00039726,15]
[392173112,1761233439807,-1860.89674787,0.0003985,60]
[392173113,1761233439818,-5847.75548597,0.00039963,15]
[392173114,1761233439829,-1026.10522447,0.0003997,15]
[392173115,1761233439839,-184.64,0.0003998,2]
[392173116,1761233439850,-25559.81976753,0.0003999,3]
[392173118,1761233440136,-1.6e-07,0.0003999,3]
[392173119,1761233440198,-381.25290002,0.0003999,3]
[392173120,1761233440209,-1095.58583599,0.0003999,3]
[392173121,1761233440221,-10941.1389268,0.0003999,3]
[392173122,1761233440231,-500.0,0.00039999,2]
[392173123,1761233440240,-500.0,0.00039999,120]
[392173124,1761233440250,-253.76167803,0.0004,120]
[392173125,1761233440262,-9055.74027511,0.0004,14]
[392173126,1761233440298,-7222.81430133,0.0004,14]
[392173131,1761233442608,-30053.30091309,0.0004,14]
[392173132,1761233442618,-5015.75919042,0.0004,10]
[392173133,1761233442628,-8751.4393305,0.0004,10]
[392173134,1761233442637,-25599.23165123,0.0004,30]
[392173135,1761233442647,-703.14834888,0.0004,120]
[392173136,1761233442658,-384.34743561,0.0004,2]
[392173137,1761233442669,-808.71568137,0.0004,120]
[392173138,1761233442679,-215.40882992,0.0004,2]
[392173139,1761233442689,-984.77160472,0.0004,2]
[392173140,1761233442699,-1198.98481606,0.0004,30]
[392173141,1761233442711,-314.07726968,0.0004,30]
[392173142,1761233442721,-168.0,0.0004023,2]
[392173143,1761233442731,-166.66,0.00040291,2]
[392173144,1761233442741,-168.0,0.00040345,2]
[392173145,1761233442751,-168.0,0.00040355,2]
[392173146,1761233442761,-150.0,0.00040488,4]
[392173147,1761233442771,-500.0,0.0004063,2]
[392173148,1761233442782,-500.0,0.0004074,2]
[392173149,1761233442793,-5847.75548597,0.00040788,15]
[392173150,1761233442803,-5180.62854801,0.000408,60]
[392173151,1761233442954,-161.0,0.00041,25]
[392173152,1761233442965,-161.0,0.00041,25]
[392173153,1761233442975,-2641.4307088,0.00041,120]
[392173154,1761233442985,-2616.60699066,0.00041,120]
[392173155,1761233442995,-2359.66285249,0.00041,120]
[392173156,1761233443006,-37977.7974305,0.00041086,3]
[392173157,1761233443015,-151.0,0.00041086,120]
[392173158,1761233443024,-151.0,0.00041086,120]
[392173159,1761233443034,-50000.0,0.00041096,120]
[392173160,1761233443044,-30000.0,0.00041096,120]
[392173163,1761233443054,-151.0,0.00041096,30]
[392173165,1761233443064,-323.26120404,0.000411,2]
[392173167,1761233443073,-321.53200453,0.00041137,10]
[392173169,1761233443083,-500.0,0.00041137,10]
[392173171,1761233443092,-502.97445239,0.00041137,10]
[392173172,1761233443103,-537.95658144,0.00041137,10]
[392173173,1761233443114,-500.5162007,0.00041137,10]
[392173174,1761233443123,-200.0,0.00041137,10]
[392173175,1761233443134,-538.67317336,0.0004143,120]
[392173176,1761233443144,-166.66,0.00041579,2]
[392173177,1761233443154,-5847.75548597,0.00041612,15]
[392173178,1761233443164,-500.0,0.00041753,2]
[392173179,1761233443174,-400.0,0.00041822,10]
[392173180,1761233443184,-22843.39124952,0.0004199,3]
[392173181,1761233443196,-3913.14636622,0.0004199,3]
[392173182,1761233443211,-1726.81045716,0.0004199,3]
[392173183,1761233443220,-277.95475891,0.00042,120]
[392173184,1761233443230,-5792.62732469,0.00042,120]
[392173185,1761233443239,-2283.13835924,0.00042,30]
[392173186,1761233443251,-38606.95844432,0.00042,30]
[392173187,1761233443261,-171.18787413,0.00042,120]
[392173188,1761233443271,-11135.89631476,0.00042,30]
[392173189,1761233443280,-475.46495461,0.00042,30]
[392173190,1761233443290,-662.62874124,0.00042,120]
[392173191,1761233443300,-100000.0,0.00042,14]
[392173192,1761233443313,-1350.03803447,0.0004201,2]
[392173193,1761233443322,-582.0,0.000421,3]
[392173194,1761233443332,-5583.9350457,0.000422,2]
[392173195,1761233443341,-187.05,0.00042405,2]
[392173196,1761233443352,-5847.75548597,0.00042437,15]
[392173197,1761233443361,-151.0,0.00042437,120]
[392173198,1761233443371,-826.85940347,0.000425,120]
[392173199,1761233443381,-1675.26024539,0.000425,60]
[392173200,1761233443390,-160.19949618,0.000425,90]
[392173201,1761233443399,-332.52917006,0.00042507,10]
[392173202,1761233443409,-166.66,0.00042511,14]
[392173203,1761233443418,-249.66,0.00042601,120]
[392173204,1761233443428,-2012.43511301,0.00042745,120]
[392173205,1761233443438,-983.88985175,0.0004282,2]
[392173206,1761233443449,-166.66,0.00042866,2]
[392173207,1761233443458,-10157.53146771,0.000429,120]
[392173208,1761233443469,-9494.44935762,0.0004299,3]
[392173209,1761233443479,-161.0,0.00043,90]
[392173210,1761233443488,-161.0,0.00043,90]
[392173211,1761233443498,-172.0,0.00043,90]
[392173212,1761233443508,-214.0,0.00043,7]
[392173213,1761233443517,-3037.94537247,0.00043,120]
[392173214,1761233443527,-100000.0,0.00043,14]
[392173215,1761233443536,-3596.84431344,0.000431,120]
[392173216,1761233443547,-5847.75548597,0.00043261,15]
[392173217,1761233443556,-990.40309335,0.0004328,120]
[392173218,1761233443566,-243.2169057,0.000435,120]
[392173219,1761233443575,-249.70455195,0.000435,120]
[392173220,1761233443584,-404.51,0.00043578,30]
[392173221,1761233443594,-463.3182171,0.000437,120]
[392173222,1761233443604,-1342.5,0.00043835,120]
[392173223,1761233443614,-1342.5,0.00043835,120]
[392173224,1761233443624,-1342.5,0.00043835,120]
[392173225,1761233443634,-500.0,0.00043835,120]
[392173226,1761233443643,-900.0,0.00044,16]
[392173227,1761233443653,-161.0,0.00044,120]
[392173228,1761233443667,-161.0,0.00044,120]
[392173229,1761233443677,-799.0,0.00044,30]
[392173230,1761233443686,-100000.0,0.00044,14]
[392173231,1761233443696,-5847.75548597,0.00044086,15]
[392173232,1761233443706,-1800.0,0.000441,16]
[392173233,1761233443716,-56966.6961457,0.00044106,3]
[392173234,1761233443726,-50199.3322878,0.00044106,3]
[392173235,1761233443736,-150.33,0.00044106,2]
[392173236,1761233443745,-258.68487082,0.00044106,7]
[392173237,1761233443755,-2100.0,0.00044115,30]
[392173238,1761233443764,-1342.5,0.00044115,120]
[392173239,1761233443775,-1000.0,0.00044116,2]
[392173240,1761233443785,-113060.9515,0.00044116,2]
[392173241,1761233443795,-853.796242,0.00044116,120]
[392173242,1761233443804,-853.796242,0.00044116,120]
[392173243,1761233443814,-853.796242,0.00044116,120]
[392173244,1761233443824,-853.796242,0.00044116,120]
[392173245,1761233443835,-166.66,0.00044154,2]
[392173246,1761233443845,-9494.44935762,0.0004419,3]
[392173247,1761233443857,-8366.5553813,0.0004419,3]
[392173248,1761233443867,-2700.0,0.000442,16]
[392173249,1761233443878,-157.69782942,0.00044215,120]
[392173250,1761233443889,-280.10274149,0.00044215,120]
[392173251,1761233443899,-500.0,0.00044215,120]
[392173252,1761233443908,-500.0,0.00044215,120]
[392173253,1761233443918,-500.0,0.00044215,120]
[392173254,1761233443928,-500.0,0.00044215,120]
[392173255,1761233443938,-500.0,0.00044215,120]
[392173256,1761233443947,-500.0,0.00044215,120]
[392173257,1761233443957,-500.0,0.00044215,120]
[392173258,1761233443967,-500.0,0.00044215,120]
[392173259,1761233443977,-649.94,0.00044215,120]
[392173260,1761233443986,-150.0,0.00044219,30]
[392173261,1761233443996,-3600.0,0.000443,16]
[392173262,1761233444006,-9494.44935762,0.00044309,3]
[392173263,1761233444016,-8366.5553813,0.00044309,3]
[392173264,1761233444026,-3993.81,0.00044319,2]
[392173265,1761233444036,-9999.99,0.00044319,2]
[392173266,1761233444046,-499.99,0.00044319,2]
[392173267,1761233444055,-150.99,0.00044319,30]
[392173268,1761233444065,-506.91,0.00044319,30]
[392173269,1761233444075,-7570.24,0.00044319,2]
[392173270,1761233444085,-3571.2,0.00044319,2]
[392173271,1761233444095,-9120.51,0.00044319,2]
[392173272,1761233444108,-22629.54,0.00044319,2]
[392173273,1761233444118,-999.99,0.00044319,2]
[392173274,1761233444128,-8278.17,0.00044319,2]
[392173275,1761233444138,-3643.53,0.00044319,2]
[392173276,1761233444147,-615.44,0.00044319,2]
[392173277,1761233444156,-56534.92,0.00044319,30]
[392173278,1761233444165,-4500.0,0.000444,16]
[392173279,1761233444175,-150.0,0.00044425,60]
[392173280,1761233444185,-150.0,0.00044425,60]
[392173281,1761233444195,-8366.5553813,0.0004449,3]
[392173282,1761233444205,-987.15742806,0.000445,120]
[392173283,1761233444215,-900.0,0.000445,16]
[392173284,1761233444226,-2322.94522369,0.000445,120]
[392173285,1761233444235,-9494.44935762,0.0004453,3]
[392173286,1761233444245,-10021.04961313,0.0004454,2]
[392173287,1761233444255,-900.0,0.000446,16]
[392173288,1761233444264,-820.09206155,0.0004466,2]
[392173289,1761233444274,-900.0,0.000447,16]
[392173290,1761233444285,-8366.5553813,0.00044766,3]